bitfinex/quotes_SOLUSD_20240712
["timestamp","ask_amount","ask_price","bid_price","bid_amount"]
[1720765911410,4.42459619,136.87,136.84,59.39]
[1720765911588,4.42459619,136.86,136.84,59.39]
[1720765911790,4.42459619,136.87,136.84,59.39]
[1720765911995,14.39,136.89,136.84,14.39]
[1720765912193,24.42444569,136.88,136.84,14.39]
[1720765912400,4.42444569,136.87,136.84,14.39]
[1720765912636,20.0,136.88,136.85,14.39]
[1720765912918,4.42441783,136.87,136.85,14.39]
[1720765913094,20.0,136.89,136.85,14.39]
[1720765913293,4.42441869,136.88,136.85,14.39]
[1720765913506,4.42441869,136.87,136.85,14.39]
[1720765913827,20.0,136.89,136.85,14.39]
[1720765913993,4.42441869,136.88,136.85,14.39]
[1720765914311,4.42441714,136.87,136.86,14.39]
[1720765916524,4.42441714,136.87,136.85,14.39]
[1720765916688,34.39,136.9,136.85,14.39]
[1720765916689,20.0,136.9,136.85,14.39]
[1720765916893,4.42402487,136.89,136.85,14.39]
[1720765917230,4.42406339,136.88,136.85,14.39]
[1720765917599,4.42406339,136.87,136.86,14.39]
[1720765918112,4.42406339,136.9,136.86,14.39]
[1720765918313,4.42406339,136.89,136.86,14.39]
[1720765918623,4.42406339,136.88,136.86,14.39]
[1720765918795,4.42406339,136.87,136.86,14.39]
[1720765919000,34.39,136.91,136.86,14.39]
[1720765919192,12.4640731,136.9,136.86,14.39]
[1720765919392,4.42399751,136.89,136.86,14.39]
[1720765919611,4.42399751,136.88,136.86,14.39]
[1720765919799,4.42399751,136.9,136.86,14.39]
[1720765920134,4.42399751,136.89,136.86,14.39]
[1720765920305,4.42399751,136.88,136.86,14.39]
[1720765920504,14.39,136.9,136.85,14.39]
[1720765920707,4.42400955,136.89,136.85,14.39]
[1720765920905,4.42400955,136.88,136.85,14.39]
[1720765921227,4.42400955,136.87,136.85,14.39]
[1720765921516,4.42400955,136.89,136.85,14.39]
[1720765921720,4.42398427,136.88,136.85,14.39]
[1720765921921,4.42398427,136.87,136.86,45.0]
[1720765922109,4.42398427,136.89,136.86,45.0]
[1720765922418,4.42398427,136.89,136.86,59.39]
[1720765922619,4.42398427,136.9,136.86,59.39]
[1720765922919,4.42398427,136.89,136.86,59.39]
[1720765923126,4.42398427,136.89,136.81,38.6304]
[1720765923337,4.42406115,136.88,136.86,15.4412]
[1720765923503,4.42406115,136.87,136.86,15.4412]
[1720765923704,4.42403741,136.87,136.86,15.4412]
[1720765924837,4.42403741,136.87,136.86,29.8312]
[1720765925514,34.39,136.91,136.86,29.8312]
[1720765925715,12.4643103,136.9,136.86,29.8312]
[1720765925920,4.42394678,136.89,136.86,29.8312]
[1720765926125,34.39,136.91,136.86,29.8312]
[1720765926330,4.42340484,136.9,136.86,29.8312]
[1720765926543,4.42340311,136.89,136.86,29.8312]
[1720765926723,20.0,136.91,136.86,29.8312]
[1720765926915,4.42334258,136.9,136.87,45.0]
[1720765927134,4.42334258,136.9,136.86,29.8312]
[1720765927135,4.42334258,136.89,136.86,29.8312]
[1720765927324,20.0,136.93,136.86,29.8312]
[1720765927519,14.39,136.91,136.86,29.8312]
[1720765927719,4.42331302,136.9,136.86,29.8312]
[1720765927924,4.42331302,136.89,136.86,29.8312]
[1720765928120,14.39,136.91,136.86,29.8312]
[1720765928321,4.4233541,136.9,136.86,29.8312]
[1720765928520,4.4233541,136.89,136.86,15.4412]
[1720765928728,22.91105562,136.94,136.86,29.8312]
[1720765929041,14.39,136.91,136.86,29.8312]
[1720765929344,4.42334981,136.9,136.86,29.8312]
[1720765929639,4.42334981,136.9,136.87,14.39]
[1720765929842,24.42334981,136.91,136.87,14.39]
[1720765930045,4.42335181,136.9,136.83,15.7484]
[1720765930339,4.42335181,136.9,136.85,14.39]
[1720765930340,4.42335181,136.89,136.85,14.39]
[1720765930543,32.46226007,136.89,136.84,14.39]
[1720765930712,4.42335181,136.88,136.84,14.39]
[1720765931918,4.42335181,136.87,136.83,15.7484]
[1720765932116,18.81335181,136.88,136.84,14.39]
[1720765932336,4.42335181,136.87,136.84,14.39]
[1720765932725,4.42335181,136.87,136.83,30.1384]
[1720765933341,14.39,136.88,136.83,15.7484]
[1720765933514,18.81457929,136.86,136.81,14.39]
[1720765933719,14.39,136.86,136.81,14.39]
[1720765934423,14.39,136.87,136.79,16.4119]
[1720765934635,4.42480668,136.86,136.82,14.39]
[1720765934844,14.39,136.87,136.82,14.39]
[1720765935161,4.42480496,136.86,136.82,14.39]
[1720765935347,14.39,136.87,136.82,14.39]
[1720765935348,4.42480496,136.85,136.82,14.39]
[1720765935638,14.39,136.86,136.81,14.39]
[1720765935943,4.42552288,136.85,136.81,14.39]
[1720765936141,14.39,136.86,136.81,14.39]
[1720765936447,4.42513605,136.85,136.81,14.39]
[1720765936620,14.39,136.87,136.82,14.39]
[1720765936941,14.39,136.89,136.84,14.39]
[1720765937144,4.42442276,136.88,136.84,14.39]
[1720765937355,4.42442276,136.87,136.83,45.0]
[1720765937521,4.42442276,136.86,136.84,14.39]
[1720765937728,4.42442276,136.87,136.84,14.39]
[1720765938052,22.5255,136.92,136.84,14.39]
[1720765938354,14.39,136.89,136.84,14.39]
[1720765938551,4.42465722,136.88,136.84,14.39]
[1720765938849,4.42465722,136.87,136.84,14.39]
[1720765939055,14.39,136.89,136.84,14.39]
[1720765939237,4.42436669,136.88,136.84,14.39]
[1720765939440,4.42436669,136.87,136.84,14.39]
[1720765939624,14.39,136.89,136.84,14.39]
[1720765939824,4.42436669,136.88,136.84,14.39]
[1720765940017,4.42436669,136.87,136.84,14.39]
[1720765940224,14.39,136.89,136.84,14.39]
[1720765940534,4.42435345,136.88,136.84,14.39]
[1720765940734,4.42435345,136.87,136.84,14.39]
[1720765940928,4.42435345,136.88,136.84,14.39]
[1720765941242,4.42435345,136.88,136.85,0.6219107]
[1720765941733,4.42435345,136.88,136.84,15.0119107]
[1720765942049,4.42435345,136.87,136.85,0.62186528]
[1720765942239,4.42435345,136.87,136.84,15.37418089]
[1720765942545,14.39,136.89,136.85,0.98418089]
[1720765942746,4.42434065,136.88,136.79,38.4119]
[1720765943051,4.42434065,136.87,136.83,14.39]
[1720765943417,14.39,136.88,136.83,14.39]
[1720765943625,4.42439689,136.87,136.83,14.39]
[1720765943947,14.39,136.88,136.83,14.39]
[1720765944127,4.42418457,136.87,136.83,14.39]
[1720765944327,20.0,136.91,136.84,14.39]
[1720765944648,14.39,136.89,136.84,14.39]
[1720765944854,24.42393313,136.88,136.84,14.39]
[1720765945061,4.42393313,136.87,136.83,14.39]
[1720765945536,34.39,136.88,136.83,14.39]
[1720765945738,4.4241186,136.87,136.83,14.39]
[1720765945951,34.39,136.88,136.83,14.39]
[1720765946122,4.42411774,136.87,136.83,14.39]
[1720765946322,34.39,136.88,136.83,14.39]
[1720765946525,4.42410621,136.87,136.83,14.39]
[1720765946743,20.0,136.88,136.84,14.39]
[1720765946951,20.0,136.91,136.85,14.39]
[1720765947155,26.85398073,136.9,136.85,14.39]
[1720765947332,38.81404758,136.89,136.85,14.39]
[1720765947666,24.42404758,136.88,136.84,14.39]
[1720765948150,20.0,136.88,136.84,14.39]
[1720765950251,14.39,136.89,136.84,14.39]
[1720765950553,4.42403624,136.88,136.84,14.39]
[1720765950725,4.42403709,136.87,136.84,14.39]
[1720765950925,33.0704968,136.92,136.84,14.39]
[1720765950926,14.39,136.89,136.84,14.39]
[1720765951230,4.42406409,136.88,136.84,14.39]
[1720765951649,4.42406409,136.87,136.83,14.39]
[1720765951846,14.39,136.89,136.84,59.39]
[1720765952049,4.42403624,136.88,136.85,15.6505]
[1720765952232,34.39,136.91,136.85,30.0405]
[1720765952550,4.42325161,136.9,136.87,14.39]
[1720765952845,4.42325161,136.89,136.87,14.39]
[1720765953149,20.0,136.91,136.87,14.39]
[1720765953352,4.42297783,136.9,136.87,14.39]
[1720765953648,34.39,136.91,136.86,14.39]
[1720765953850,4.42282636,136.9,136.87,45.0]
[1720765954039,14.39,136.91,136.86,14.39]
[1720765954431,4.42312759,136.9,136.85,15.6505]
[1720765954647,4.42312759,136.89,136.86,59.39]
[1720765954848,14.39,136.91,136.86,59.39]
[1720765955163,4.4231293,136.9,136.86,59.39]
[1720765955355,4.4231293,136.89,136.86,59.39]
[1720765955549,14.39,136.91,136.86,59.39]
[1720765955858,4.4231293,136.9,136.86,59.39]
[1720765956051,4.4231293,136.89,136.86,59.39]
[1720765956229,14.39,136.91,136.86,59.39]
[1720765956429,4.42312759,136.9,136.86,59.39]
[1720765956734,4.42312759,136.89,136.86,14.39]
[1720765956949,14.39,136.91,136.87,45.0]
[1720765957150,14.39,136.91,136.86,14.39]
[1720765957339,4.42316524,136.9,136.87,45.0]
[1720765957542,4.42316524,136.89,136.87,59.39]
[1720765957850,7.59734481,136.95,136.89,22.5997]
[1720765958052,4.42082964,136.94,136.9,67.0]
[1720765958352,3.77719736,137.01,136.94,16.316]
[1720765958554,12.47584815,137.0,136.96,14.39]
[1720765958731,4.42001161,136.99,136.96,14.39]
[1720765958931,0.8446084,137.01,136.97,14.39]
[1720765959248,4.41922849,137.0,136.97,14.39]
[1720765959546,0.8446084,137.01,136.98,14.39]
[1720765959758,0.8446084,137.01,136.99,14.39]
[1720765960333,0.8446084,137.01,136.95,51.2837]
[1720765960550,0.8446084,137.01,136.96,1.45671976]
[1720765960754,0.8446084,137.01,136.98,14.39]
[1720765960940,0.8446084,137.01,136.99,1.45640082]
[1720765961641,0.8446084,137.01,136.99,1.45608197]
[1720765961844,15.2346084,137.01,136.96,14.39]
[1720765962445,14.39,137.0,136.96,14.39]
[1720765963061,14.39,137.0,136.94,16.316]
[1720765963365,15.2346084,137.01,136.96,14.39]
[1720765963553,34.39,137.0,136.95,14.39]
[1720765964263,14.39,137.0,136.95,14.39]
[1720765964561,34.39,136.99,136.95,14.39]
[1720765965143,20.0,136.99,136.95,14.39]
[1720765965466,0.8446084,137.01,136.97,14.39]
[1720765965467,15.2346084,137.01,136.97,14.39]
[1720765965669,20.0,136.99,136.97,14.39]
[1720765966049,15.2346084,137.01,136.96,14.39]
[1720765966248,0.8446084,137.01,136.94,16.316]
[1720765966444,15.2346084,137.01,136.97,14.39]
[1720765966645,0.8446084,137.01,136.96,14.39]
[1720765966955,0.8446084,137.01,136.97,14.39]
[1720765967269,0.8446084,137.01,136.97,59.39]
[1720765967562,0.8446084,137.01,136.94,16.316]
[1720765967864,20.8446084,137.01,136.97,14.39]
[1720765968847,0.8446084,137.01,136.97,14.39]
[1720765969046,20.8446084,137.01,136.97,14.39]
[1720765969663,0.8446084,137.01,136.97,14.39]
[1720765969956,20.8446084,137.01,136.97,14.39]
[1720765970172,35.2346084,137.01,136.95,45.0]
[1720765970368,35.2346084,137.01,136.96,14.39]
[1720765970747,0.8446084,137.01,136.98,14.39]
[1720765970945,0.8446084,137.01,136.99,14.39]
[1720765971945,0.8446084,137.01,136.98,14.39]
[1720765972953,0.8446084,137.01,136.97,14.39]
[1720765973561,0.8446084,137.01,136.94,16.316]
[1720765973562,14.39,137.0,136.94,16.316]
[1720765973768,0.8446084,137.01,136.95,14.39]
[1720765973977,14.39,137.0,136.95,14.39]
[1720765975461,17.1866084,137.01,136.9,15.4272]
[1720765975462,34.39,136.99,136.94,14.39]
[1720765975669,34.39,136.99,136.9,15.4272]
[1720765975870,14.39,136.98,136.93,14.39]
[1720765976761,20.0,136.99,136.94,14.39]
[1720765976762,34.39,136.99,136.94,14.39]
[1720765976963,34.39,137.0,136.95,14.39]
[1720765977575,34.39,137.0,136.96,14.39]
[1720765979268,17.1866084,137.01,136.96,14.39]
[1720765979460,34.39,137.0,136.96,14.39]
[1720765980875,34.39,137.0,136.95,14.39]
[1720765981071,14.39,136.96,136.85,15.2335]
[1720765981377,14.39,136.94,136.89,14.39]
[1720765981549,14.39,136.94,136.85,15.2335]
[1720765981871,14.39,136.95,136.9,14.39]
[1720765982078,20.0,136.94,136.9,14.39]
[1720765982653,14.39,136.95,136.9,14.39]
[1720765982851,20.0,136.94,136.85,15.2335]
[1720765983054,14.39,136.93,136.88,14.39]
[1720765984874,34.39,136.92,136.87,14.39]
[1720765985192,34.39,136.92,136.85,15.2335]
[1720765985193,34.39,136.91,136.86,14.39]
[1720765985475,14.39,136.9,136.85,14.39]
[1720765985658,14.39,136.89,136.81,16.6035]
[1720765985857,14.39,136.89,136.84,14.39]
[1720765986356,14.39,136.89,136.85,14.39]
[1720765986558,14.39,136.9,136.85,14.39]
[1720765986762,21.9853,136.92,136.88,14.39]
[1720765986979,20.0,136.91,136.88,14.39]
[1720765987275,20.0,136.91,136.89,14.39]
[1720765987453,14.39,136.94,136.89,14.39]
[1720765987454,20.0,136.93,136.89,14.39]
[1720765987866,14.39,136.94,136.89,14.39]
[1720765988089,20.0,136.93,136.89,14.39]
[1720765988254,20.0,136.93,136.81,38.6035]
[1720765988458,14.39,136.91,136.86,14.39]
[1720765988680,20.0,136.95,136.86,14.39]
[1720765988984,14.39,136.92,136.87,14.39]
[1720765989361,20.0,136.91,136.87,14.39]
[1720765990271,14.39,136.92,136.87,14.39]
[1720765990465,14.39,136.93,136.88,14.39]
[1720765990662,22.1998,136.96,136.89,14.39]
[1720765990988,14.39,136.94,136.89,14.39]
[1720765992077,20.0,136.93,136.89,14.39]
[1720765992785,14.39,136.95,136.86,16.2824]
[1720765992973,14.39,136.95,136.9,14.39]
[1720765993967,20.0,136.94,136.9,14.39]
[1720765994484,14.39,136.95,136.9,14.39]
[1720765994869,15.9393,136.96,136.9,14.39]
[1720765995210,14.39,136.95,136.9,14.39]
[1720765996095,14.39,136.95,136.87,45.0]
[1720765996293,14.39,136.95,136.9,14.39]
[1720765996589,14.39,136.94,136.89,14.39]
[1720765996777,15.9393,136.96,136.89,14.39]
[1720765996978,14.39,136.94,136.9,14.39]
[1720765997388,34.39,136.95,136.9,14.39]
[1720765997573,14.39,136.94,136.86,16.2824]
[1720765997768,14.39,136.94,136.89,14.39]
[1720765997974,14.39,136.93,136.89,14.39]
[1720765998680,14.39,136.92,136.86,16.2824]
[1720765999090,14.39,136.92,136.87,14.39]
[1720765999408,14.39,136.93,136.88,14.39]
[1720766001093,14.39,136.92,136.86,16.2824]
[1720766001276,14.39,136.91,136.86,30.6724]
[1720766001477,14.39,136.91,136.86,16.2824]
[1720766001696,20.0,136.95,136.87,14.39]
[1720766001877,14.39,136.94,136.89,14.39]
[1720766003206,20.0,136.95,136.89,14.39]
[1720766003495,14.39,136.94,136.89,14.39]
[1720766003691,14.39,136.93,136.89,14.39]
[1720766004091,14.39,136.93,136.88,14.39]
[1720766004278,14.39,136.92,136.87,1.3461503]
[1720766004479,14.39,136.92,136.87,14.39]
[1720766004681,14.39,136.91,136.87,14.39]
[1720766004876,20.0,136.95,136.87,14.39]
[1720766005082,14.39,136.92,136.87,14.39]
[1720766005679,20.0,136.95,136.87,14.39]
[1720766005880,14.39,136.92,136.87,15.84762596]
[1720766007293,7.6078919,136.97,136.88,21.7458]
[1720766007593,14.39,136.95,136.91,14.39]
[1720766008184,14.39,136.95,136.9,14.39]
[1720766008377,14.39,136.93,136.88,21.7458]
[1720766008601,14.39,136.93,136.88,29.8117]
[1720766008774,15.9275,136.98,136.89,0.54285234]
[1720766008978,14.39,136.93,136.89,0.54285234]
[1720766009583,14.39,136.94,136.89,14.93285234]
[1720766011697,20.0,136.97,136.9,14.93281268]
[1720766011900,14.39,136.96,136.91,14.39]
[1720766013012,14.39,136.95,136.91,14.39]
[1720766013187,15.9275,136.98,136.91,14.39]
[1720766013391,14.39,136.96,136.91,14.39]
[1720766013585,20.0,136.97,136.93,14.39]
[1720766014215,14.39,136.98,136.94,14.39]
[1720766014394,14.39,136.99,136.94,14.39]
[1720766014586,20.0,136.98,136.94,14.39]
[1720766014891,14.39,136.99,136.94,14.39]
[1720766015099,20.0,136.98,136.94,14.39]
[1720766015686,20.0,136.98,136.93,30.5729]
[1720766015984,14.39,136.98,136.93,30.5729]
[1720766017721,20.0,137.0,136.94,14.39]
[1720766017900,4.41973063,136.99,136.94,14.39]
[1720766018104,14.39,136.99,136.94,14.39]
[1720766018294,20.0,136.98,136.94,14.39]
[1720766020114,20.0,136.98,136.95,14.39]
[1720766020292,14.39,136.98,136.93,16.1829]
[1720766020497,14.39,136.98,136.93,30.5729]
[1720766021918,20.0,136.99,136.94,14.39]
[1720766021919,34.39,136.99,136.94,14.39]
[1720766022303,14.39,136.98,136.93,16.1829]
[1720766022503,14.39,136.98,136.93,30.5729]
[1720766024313,34.39,136.99,136.94,14.39]
[1720766024515,34.39,136.99,136.95,14.39]
[1720766024516,4.41998632,136.98,136.95,14.39]
[1720766024710,20.0,136.99,136.95,14.39]
[1720766025617,20.0,136.99,136.93,16.1829]
[1720766025618,34.39,136.99,136.94,14.39]
[1720766025798,34.39,136.99,136.96,14.39]
[1720766025799,20.0,136.99,136.96,14.39]
[1720766025996,35.2346084,137.01,136.96,14.39]
[1720766026197,4.41871406,137.0,136.96,14.39]
[1720766026403,20.0,137.0,136.96,14.39]
[1720766027303,34.39,137.0,136.95,14.39]
[1720766027505,4.41944407,136.99,136.95,14.39]
[1720766027804,20.0,136.99,136.95,14.39]
[1720766028407,14.39,137.0,136.95,14.39]
[1720766028600,20.0,136.99,136.95,14.39]
[1720766028906,20.0,136.99,136.93,16.1829]
[1720766028907,15.2346084,137.01,136.96,14.39]
[1720766029117,20.0,136.99,136.96,14.39]
[1720766029305,0.8446084,137.01,136.96,14.39]
[1720766029603,0.8446084,137.01,136.97,14.39]
[1720766029803,15.2346084,137.01,136.97,14.39]
[1720766030918,0.8446084,137.01,136.98,0.43905128]
[1720766031220,0.8446084,137.01,136.97,14.39]
[1720766031400,20.8446084,137.01,136.98,0.43905127]
[1720766031823,0.8446084,137.01,136.98,14.82905127]
[1720766032120,0.8446084,137.01,136.99,0.43901921]
[1720766032319,0.8446084,137.01,136.98,14.82901922]
[1720766033106,0.8446084,137.01,136.97,0.43901922]
[1720766033427,14.39,137.0,136.95,14.39]
[1720766034430,14.39,137.0,136.96,14.39]
[1720766035826,14.39,137.0,136.95,14.39]
[1720766036935,0.8446084,137.01,136.96,14.39]
[1720766037132,4.41904101,137.0,136.96,14.39]
[1720766037339,35.2346084,137.01,136.96,14.39]
[1720766037509,15.2346084,137.01,136.96,14.39]
[1720766038052,0.8446084,137.01,136.97,59.39]
[1720766038341,0.8446084,137.01,136.99,14.39]
[1720766038814,0.8446084,137.01,137.0,1.45960558]
[1720766039321,0.8446084,137.01,136.98,1.45960522]
[1720766039517,0.8446084,137.01,136.98,15.84949867]
[1720766039839,0.8446084,137.01,136.99,1.45949866]
[1720766040130,0.8446084,137.01,136.99,15.84949866]
[1720766040633,0.8446084,137.01,136.98,15.84970308]
[1720766040937,0.8446084,137.01,136.99,59.39]
[1720766041121,0.8446084,137.01,136.99,14.39]
[1720766041316,0.8446084,137.01,136.98,15.84970308]
[1720766041839,0.8446084,137.01,136.99,14.39]
[1720766042015,0.8446084,137.01,137.0,1.45970575]
[1720766042215,0.8446084,137.01,136.99,1.45960761]
[1720766042415,0.8446084,137.01,136.98,14.39]
[1720766043425,0.8446084,137.01,136.97,29.842]
[1720766044119,0.8446084,137.01,136.98,59.39]
[1720766044820,0.8446084,137.01,136.97,15.452]
[1720766045022,0.8446084,137.01,136.98,14.39]
[1720766047113,0.8446084,137.01,136.99,1.45809815]
[1720766047758,0.8446084,137.01,136.98,14.39]
[1720766048121,0.8446084,137.01,136.99,59.39]
[1720766048321,0.8446084,137.01,136.99,14.39]
[1720766048644,0.8446084,137.01,136.98,14.39]
[1720766049119,0.8446084,137.01,136.97,15.452]
[1720766049517,0.8446084,137.01,136.98,14.39]
[1720766049737,0.8446084,137.01,136.99,1.29256922]
[1720766050255,0.8446084,137.01,136.97,29.842]
[1720766050746,0.8446084,137.01,136.98,14.39]
[1720766051748,0.8446084,137.01,136.99,14.39]
[1720766052051,0.8446084,137.01,137.0,59.39]
[1720766055930,0.8446084,137.01,136.97,15.452]
[1720766056126,0.8446084,137.01,137.0,14.39]
[1720766056350,0.8446084,137.01,136.99,14.39]
[1720766056945,0.8446084,137.01,137.0,45.0]
[1720766057227,0.8446084,137.01,137.0,59.39]
[1720766057646,0.8446084,137.01,137.0,14.39]
[1720766057845,0.8446084,137.01,137.0,59.39]
[1720766058047,0.8446084,137.01,137.0,14.39]
[1720766058959,0.8446084,137.01,137.0,59.39]
[1720766059836,0.8446084,137.01,137.0,14.39]
[1720766060944,0.8446084,137.01,137.0,59.39]
[1720766062461,0.8446084,137.01,137.0,45.0]
[1720766062642,0.8446084,137.01,137.0,59.39]
[1720766064359,0.8446084,137.01,137.0,14.39]
[1720766064672,0.8446084,137.01,136.99,14.39]
[1720766065162,0.8446084,137.01,136.97,15.452]
[1720766065356,0.8446084,137.01,136.99,14.39]
[1720766068057,0.8446084,137.01,136.98,14.39]
[1720766070472,0.8446084,137.01,136.99,15.8478639]
[1720766070655,0.8446084,137.01,137.0,1.45859654]
[1720766070866,5.26243367,137.01,137.0,1.45859654]
[1720766071467,5.26243367,137.01,136.97,14.39]
[1720766071764,0.8446084,137.01,136.97,14.39]
[1720766075154,4.41823364,137.0,136.97,14.39]
[1720766075359,18.80846662,136.99,136.9,43.9977306]
[1720766075662,34.39,137.0,136.95,14.39]
[1720766075872,4.41853086,136.99,136.95,14.39]
[1720766076164,20.0,136.99,136.96,0.70937049]
[1720766076367,15.2346084,137.01,136.96,15.09937049]
[1720766076574,4.41860071,137.0,136.97,0.7093187]
[1720766076744,4.41860071,136.99,136.97,0.70931869]
[1720766076950,0.8446084,137.01,136.97,14.39]
[1720766076951,15.2346084,137.01,136.97,14.39]
[1720766077149,4.41850073,137.0,136.97,14.39]
[1720766077351,4.41847379,136.99,136.97,14.39]
[1720766077668,15.2346084,137.01,136.94,0.70911154]
[1720766077859,14.39,137.0,136.94,0.70911154]
[1720766078167,4.41867898,136.99,136.95,14.39]
[1720766078372,0.8446084,137.01,136.96,15.10319544]
[1720766078557,4.41865375,137.0,136.96,14.39]
[1720766078753,20.8446084,137.01,136.97,0.71326978]
[1720766078976,4.41816232,137.0,136.97,0.71326978]
[1720766079282,20.8446084,137.01,136.97,0.71508412]
[1720766079451,4.41813709,137.0,136.97,0.71508412]
[1720766079761,35.2346084,137.01,136.96,14.39]
[1720766079975,4.41796981,137.0,136.96,14.39]
[1720766080150,0.8446084,137.01,136.97,0.71497575]
[1720766080350,0.8446084,137.01,136.97,15.10497575]
[1720766080554,0.8446084,137.01,136.97,14.39]
[1720766081376,15.2346084,137.01,136.96,14.39]
[1720766081674,0.8446084,137.01,136.97,0.71648366]
[1720766081848,0.8446084,137.01,136.99,14.39]
[1720766082049,0.8446084,137.01,137.0,1.45776755]
[1720766082250,0.8446084,137.01,136.99,1.45776755]
[1720766082450,0.8446084,137.01,136.97,45.0]
[1720766082451,0.8446084,137.01,136.98,15.84776755]
[1720766082775,0.8446084,137.01,136.99,1.45766113]
[1720766083447,0.8446084,137.01,136.98,15.84766113]
[1720766084548,0.8446084,137.01,136.99,1.45755472]
[1720766084949,0.8446084,137.01,136.98,15.84767815]
[1720766085672,0.8446084,137.01,136.98,14.39]
[1720766085973,0.8446084,137.01,136.98,15.8475103]
[1720766086160,0.8446084,137.01,136.98,14.39]
[1720766086881,0.8446084,137.01,136.99,15.8471915]
[1720766087056,0.8446084,137.01,136.99,14.39]
[1720766087258,0.8446084,137.01,137.0,1.45969548]
[1720766087788,0.8446084,137.01,136.99,14.39]
[1720766088647,0.8446084,137.01,136.98,14.39]
[1720766088853,0.8446084,137.01,136.99,15.84970572]
[1720766089070,0.8446084,137.01,136.99,14.39]
[1720766089273,0.8446084,137.01,137.0,1.45925773]
[1720766089577,0.8446084,137.01,136.99,14.39]
[1720766089776,0.8446084,137.01,136.98,14.39]
[1720766091660,0.8446084,137.01,136.95,37.0241]
[1720766091866,0.8446084,137.01,136.99,14.39]
[1720766092188,0.8446084,137.01,136.95,15.0541]
[1720766092363,0.8446084,137.01,136.99,14.39]
[1720766093060,0.8446084,137.01,137.0,0.94428676]
[1720766093657,0.8446084,137.01,136.99,14.39]
[1720766094467,0.8446084,137.01,136.98,14.39]
[1720766094796,0.8446084,137.01,136.99,1.45968546]
[1720766095457,0.8446084,137.01,136.98,14.39]
[1720766095690,0.8446084,137.01,136.95,15.0541]
[1720766095886,0.8446084,137.01,136.98,14.39]
[1720766096265,0.8446084,137.01,136.97,14.39]
[1720766097066,0.8446084,137.01,136.95,15.0541]
[1720766097377,0.8446084,137.01,136.97,14.39]
[1720766097757,0.8446084,137.01,136.98,14.39]
[1720766099086,0.8446084,137.01,136.97,14.39]
[1720766100087,15.2346084,137.01,136.96,15.84859934]
[1720766100459,0.8446084,137.01,136.97,14.39]
[1720766101479,0.8446084,137.01,136.98,1.45990099]
[1720766101686,0.8446084,137.01,136.97,14.39]
[1720766101893,0.8446084,137.01,136.98,59.39]
[1720766102061,0.8446084,137.01,136.99,14.39]
[1720766102468,0.8446084,137.01,136.98,14.39]
[1720766103093,0.8446084,137.01,136.97,14.39]
[1720766103785,0.8446084,137.01,136.98,14.39]
[1720766104292,0.8446084,137.01,136.95,15.0541]
[1720766104498,0.8446084,137.01,136.98,14.39]
[1720766106784,0.8446084,137.01,136.99,45.0]
[1720766106976,0.8446084,137.01,136.96,45.0]
[1720766107180,15.2346084,137.01,136.92,16.2212]
[1720766107367,15.2346084,137.01,136.96,14.39]
[1720766110179,4.4179595,137.0,136.96,14.39]
[1720766110491,14.39,137.0,136.96,14.39]